[Event "29th Bosnjaci Open 2025"]
[Site "Bosnjaci"]
[Date "2025.01.05"]
[Round "4.4"]
[White "Pap, Misa"]
[Black "Ljubicic, Mario"]
[Result "1-0"]
[ECO "C84"]
[WhiteElo "2436"]
[BlackElo "2115"]
[Annotator "TA"]
[PlyCount "49"]
[EventDate "2025.01.04"]
[EventType "swiss"]
[EventCountry "CRO"]
[SourceTitle "playchess.com"]
[Source "ChessBase"]
[SourceQuality "1"]
[TimeControl "5400+30"]

{[%evp 20,49,37,25,45,26,36,44,37,50,190,194,242,170,652,456,1214,1217,1279,1157,1135,1128,29993,1522,29994,1485,1441,1454,1420,1530,1557,1524]} 1. e4 {[%emt 0:00:15]} e5 {[%emt 0:00:40]} 2. Nf3 {[%emt 0:00:08]} Nc6 {[%emt 0:00:28]} 3. Bb5 {[%emt 0:00:08][%cal Bf1b5,Bb5a4,Ba4b3,Bb3d5][%mdl 32]} a6 {[%emt 0:00:41]} 4. Ba4 {[%emt 0:00:04]} Nf6 {[%emt 0:00:24]} 5. d3 {[%emt 0:00:22]} b5 {[%emt 0:00:40]} 6. Bb3 {[%emt 0:00:05]} Be7 {[%emt 0:00:59]} 7. a4 {[%emt 0:02:06]} Bb7 {[%emt 0:02:20]} 8. Nc3 {[%emt 0:00:28]} b4 {[%emt 0:01:54]} 9. Nd5 {[%emt 0:00:05]} Nxd5 {[%emt 0:02:54]} 10. Bxd5 {[%emt 0:00:24]} d6 {[%emt 0:04:13]} 11. O-O {[%emt 0:00:07][%cal Of3g5]} a5 {[%emt 0:05:43]} 12. d4 {[%emt 0:19:33]} exd4 {[%emt 0:07:40]} 13. Nxd4 {[%emt 0:01:06]} Qd7 {[%emt 0:00:28]} 14. Re1 {[%emt 0:27:57]} O-O {[%emt 0:03:09]} (14... Rb8 $14) 15. Nf5 $18 {[%emt 0:00:24]} Bf6 {[%emt 0:05:33]} (15... g6 $142 16. Nh6+ Kg7) 16. Re3 {[%emt 0:06:05]} Nd8 $2 {[%emt 0:35:52]} (16... g6) 17. Qg4 {[%emt 0:04:46] Nh6+ is the strong threat.} Kh8 {[%emt 0:04:38]} (17... Ne6 $142 18. Bxb7 Rad8) 18. Rh3 {[%emt 0:00:58]} g6 {[%emt 0:01:14] [#] Prevents Qh5} 19. Rxh7+ $3 {[%emt 0:03:21][%mdl 512]} Kxh7 {[%emt 0:00:51]} 20. Qh3+ {[%emt 0:00:06]} Bh4 {[%emt 0:01:00]} 21. Qxh4+ {[%emt 0:00:04]} (21. Nxh4 $2 {perishes.} Qxh3 22. gxh3 Bxd5 23. exd5 Rh8 $19) 21... Kg8 {[%emt 0:00:06]} 22. Ne7+ {[%emt 0:00:46]} (22. Bg5 $142 Qe6 23. Ne7+ (23. Bxe6 fxe6 24. Ne7+ Kf7 $18) 23... Qxe7 24. Bxe7 Ne6 25. Bf6 (25. Bxb7 f6 $18) 25... Ng7 26. Qh6 Bxd5 27. Qxg7#) 22... Qxe7 {[%emt 0:00:49]} 23. Qxe7 {[%emt 0:00:08]} Bxd5 {[%emt 0:00:15]} 24. exd5 {[%emt 0:00:08][%cal Oc1h6] White wants to mate with Bh6!.} Nc6 {[%emt 0:00:09]} 25. Qf6 {[%emt 0:00:15]} 1-0

[Event "29th Bosnjaci Open 2025"]
[Site "Bosnjaci"]
[Date "2025.01.05"]
[Round "4.5"]
[White "Fercec, Nenad"]
[Black "Colev, Ivor"]
[Result "1/2-1/2"]
[ECO "B53"]
[WhiteElo "2382"]
[BlackElo "2169"]
[Annotator "TA"]
[PlyCount "157"]
[EventDate "2025.01.04"]
[EventType "swiss"]
[EventCountry "CRO"]
[SourceTitle "playchess.com"]
[Source "ChessBase"]
[SourceQuality "1"]
[TimeControl "5400+30"]

{[%evp 57,157,9,9,2,6,6,16,0,0,0,0,0,0,0,0,0,0,0,22,8,10,0,0,0,6,8,220,24,36,2,2,2,2,2,2,0,0,0,0,0,0,0,0,0,0,0,0,0,0,0,0,0,0,0,0,0,0,-7,-7,-7,-7,-66,-66,-66,-66,-66,-66,-66,-7,-7,0,-66,0,-66,-66,-66,-8,-8,-8,-8,-8,-8,-8,-8,-8,-8,-8,-8,-8,-8,-8,-8,0,0,0,0,0,0,0,0,0,0]} 1. e4 {[%emt 0:00:06]} c5 {[%emt 0:01:01]} 2. Nf3 {[%emt 0:00:14]} d6 {[%emt 0:00:06]} 3. d4 {[%emt 0:00:08]} cxd4 {[%emt 0:00:03]} 4. Qxd4 {[%emt 0:00:07]} Nc6 {[%emt 0:00:34]} 5. Qe3 {[%emt 0:00:15]} Nf6 {[%emt 0:01:32]} 6. Be2 {[%emt 0:00:12]} g6 {[%emt 0:00:11]} 7. O-O {[%emt 0:00:06]} Bg7 {[%emt 0:00:05]} 8. h3 {[%emt 0:00:09]} O-O {[%emt 0:00:10]} 9. Rd1 {[%emt 0:00:06]} Nd7 {[%emt 0:08:07]} 10. Nc3 {[%emt 0:01:05]} a6 {[%emt 0:01:04]} 11. Rb1 {[%emt 0:06:07]} b5 {[%emt 0:06:43]} 12. b3 {[%emt 0:00:59]} b4 {[%emt 0:05:21]} 13. Nd5 {[%emt 0:00:55]} e6 {[%emt 0:02:03]} 14. Nf4 {[%emt 0:00:05]} Qc7 {[%emt 0:00:13]} 15. Bb2 {[%emt 0:00:39]} Nde5 {[%emt 0:01:40]} 16. Nd4 {[%emt 0:04:51]} Nxd4 {[%emt 0:07:49]} 17. Bxd4 {[%emt 0:00:10]} Bb7 {[%emt 0:00:52]} 18. Rbc1 {[%emt 0:13:44]} Qc6 {[%emt 0:00:45]} 19. Bd3 {[%emt 0:01:16]} a5 {[%emt 0:12:25]} 20. Ne2 {[%emt 0:15:00]} Rfc8 {[%emt 0:09:39]} 21. f4 {[%emt 0:00:35]} Bh6 {[%emt 0:02:45]} 22. Qg3 {[%emt 0:01:16]} Nxd3 {[%emt 0:00:15]} 23. cxd3 {[%emt 0:00:11]} Qb5 {[%emt 0:00:40]} 24. Qh4 {[%emt 0:16:54]} Bg7 {[%emt 0:03:35]} 25. Bxg7 {[%emt 0:01:49]} Kxg7 {[%emt 0:00:18]} 26. Nd4 {[%emt 0:00:58]} Qb6 {[%emt 0:06:58]} 27. Qf2 {[%emt 0:00:32]} Kg8 {[%emt 0:00:50]} 28. Nf3 {[%emt 0:00:33]} Qxf2+ {[%emt 0:01:10]} 29. Kxf2 {[%emt 0:00:08]} Kf8 {[%emt 0:03:24]} 30. Ke3 {[%emt 0:00:15]} Ke7 {[%emt 0:00:16]} 31. Nd2 {[%emt 0:01:11]} Ba6 {[%emt 0:02:44]} 32. Nc4 {[%emt 0:06:46]} Bxc4 {[%emt 0:00:05]} 33. dxc4 {[%emt 0:00:33]} Rc5 {[%emt 0:04:09]} 34. Rd3 {[%emt 0:05:23]} h5 {[%emt 0:01:04]} 35. Rcd1 {[%emt 0:00:33]} Ra6 {[%emt 0:00:32]} 36. g4 {[%emt 0:00:28]} hxg4 {[%emt 0:00:19]} 37. hxg4 {[%emt 0:00:06]} Rb6 {[%emt 0:06:34]} 38. g5 {[%emt 0:00:26]} Ra6 {[%emt 0:02:30]} 39. Rh1 {[%emt 0:03:49]} Ra8 {[%emt 0:00:21]} 40. Rhd1 {[%emt 0:03:03]} Ra6 {[%emt 0:00:05]} 41. Kf3 {[%emt 0:02:09]} Rb6 $2 {[%emt 0:05:43] [#]} (41... a4 $11 {and Black stays safe.}) 42. Kg4 $2 {[%emt 0:05:14]} ({Only move:} 42. e5 $1 $18) 42... Rbc6 {[%emt 0:01:12]} 43. R1d2 {[%emt 0:00:34]} a4 $1 {[%emt 0:01:56]} 44. e5 {[%emt 0:00:19]} (44. bxa4 Rxc4 45. Rd4 e5 46. fxe5 dxe5 47. Rd7+ Ke6 $19) 44... d5 {[%emt 0:02:51]} 45. cxd5 {[%emt 0:01:50]} Rxd5 {[%emt 0:00:44]} 46. Rxd5 {[%emt 0:00:09]} exd5 {[%emt 0:00:03]} 47. Rd4 {[%emt 0:00:30]} a3 $1 {[%emt 0:01:12]} 48. Rxb4 {[%emt 0:02:58]} (48. Rxd5 $2 Rc2 49. f5 Rxa2 $19) 48... Rc2 {[%emt 0:00:05]} 49. Rb7+ {[%emt 0:00:13]} Ke6 {[%emt 0:00:51]} 50. Rb6+ {[%emt 0:00:05]} Kd7 {[%emt 0:00:49]} 51. Rd6+ {[%emt 0:00:44]} Ke7 {[%emt 0:00:08]} 52. Rxd5 {[%emt 0:00:04]} Rxa2 {[%emt 0:00:04]} 53. Ra5 {[%emt 0:00:08]} Ra1 {[%emt 0:00:12]} 54. Kg3 {[%emt 0:00:33]} a2 {[%emt 0:00:42]} 55. Kg2 {[%emt 0:00:05]} Ke6 {[%emt 0:00:14]} 56. b4 {[%emt 0:00:28]} Kf5 {[%emt 0:00:08]} 57. b5 {[%emt 0:00:05]} Kxf4 {[%emt 0:00:34]} 58. b6 {[%emt 0:00:03]} Kg4 {[%emt 0:01:57]} (58... Rb1 {simplifies} 59. Rxa2 Rxb6 60. Rf2+ Kxg5 61. Rxf7 Re6) 59. b7 {[%emt 0:00:46]} (59. Kh2 $1 $11) 59... Rb1 $1 $15 {[%emt 0:00:04]} (59... Kxg5 $2 {perishes.} 60. b8=Q (60. b8=R Re1 $18) 60... Rd1 61. e6+ (61. Rxa2 Rd5 $18) 61... f5 62. e7 $18 (62. Rxa2 Kh5 $18) (62. Qg3+ Kh5 63. Qf3+ Kg5 64. Qxd1 Kh6 65. Qd8 Kh5 66. Ra3 g5 67. Rh3+ Kg6 68. Qf8 a1=Q 69. Rh6#)) 60. Rxa2 {[%emt 0:00:05]} Rxb7 {[%emt 0:00:04]} (60... Kxg5 61. Ra7 $11) 61. Rf2 {[%emt 0:00:21]} Kxg5 {[%emt 0:00:13]} 62. Kg3 {[%emt 0:00:13]} Rb3+ {[%emt 0:00:23]} (62... Kh6 $15) 63. Kg2 $11 {[%emt 0:00:06]} Rb7 {[%emt 0:00:03]} (63... Rb5 $11) 64. Kg3 $1 $15 {[%emt 0:00:02]} Kh5 {[%emt 0:01:09]} (64... Kh6 $15) 65. Rf6 {[%emt 0:01:09]} (65. Rh2+ $1 $11 Kg5 66. Rf2) 65... Re7 $1 $15 {[%emt 0:01:24]} 66. Kf3 {[%emt 0:02:37]} g5 {[%emt 0:00:54]} ({Reject} 66... Rxe5 67. Rxf7 Kg5 68. Rb7 $11) (66... Kh6 $15) 67. Kg3 $11 {[%emt 0:00:11]} Rxe5 {[%emt 0:00:39]} 68. Rxf7 {[%emt 0:00:06]} Re3+ {[%emt 0:00:04]} 69. Kg2 {[%emt 0:00:05]} Kg4 {[%emt 0:00:12]} 70. Rf2 {[%emt 0:00:27]} Ra3 {[%emt 0:00:17]} 71. Rc2 $1 {[%emt 0:00:06]} Kh4 {[%emt 0:00:10]} 72. Rc4+ {[%emt 0:00:06]} g4 {[%emt 0:00:06]} 73. Rc2 $1 {[%emt 0:00:03]} Ra4 {[%emt 0:00:23]} 74. Rb2 {[%emt 0:00:05]} g3 {[%emt 0:00:33]} 75. Rc2 {[%emt 0:00:05]} Kg4 {[%emt 0:00:12]} 76. Rb2 {[%emt 0:00:04]} Rf4 {[%emt 0:00:36]} 77. Ra2 {[%emt 0:00:05]} Rf2+ {[%emt 0:00:30]} 78. Rxf2 {[%emt 0:00:07]} gxf2 {[%emt 0:00:30]} 79. Kxf2 {[%emt 0:00:30]} 1/2-1/2

[Event "29th Bosnjaci Open 2025"]
[Site "Bosnjaci"]
[Date "2025.01.05"]
[Round "4.6"]
[White "Vujnovic, Patricija"]
[Black "Kovac, Petar"]
[Result "0-1"]
[ECO "D40"]
[WhiteElo "2121"]
[BlackElo "2289"]
[Annotator "TA"]
[PlyCount "114"]
[EventDate "2025.01.04"]
[EventType "swiss"]
[EventCountry "CRO"]
[SourceTitle "playchess.com"]
[Source "ChessBase"]
[SourceQuality "1"]
[TimeControl "5400+30"]

{[%evp 24,114,47,-89,-82,-129,-129,-122,-131,-116,-130,-123,-62,-55,-47,-320,-66,-75,0,0,0,45,186,181,175,193,202,95,99,0,0,0,0,0,0,-56,3,-17,-35,-63,-68,-70,-62,-207,-96,-100,0,-118,-119,-119,-97,-183,-117,-217,-95,-189,-118,-125,-117,-114,-116,-144,-145,-143,-146,-214,-143,-153,-153,-249,-245,-267,-260,-257,-247,-381,-375,-381,-383,-359,-374,-478,-416,-427,-427,-427,-427,-496,-470,-6941,-6068,-6850,-6664]} 1. d4 {[%emt 0:00:01]} Nf6 {[%emt 0:00:06]} 2. Nf3 {[%emt 0:00:45]} d5 {[%emt 0:00:15]} 3. e3 {[%emt 0:01:04]} c5 {[%emt 0:00:36]} 4. c4 {[%emt 0:00:42]} e6 {[%emt 0:01:06]} 5. Nc3 {[%emt 0:00:09]} Nc6 {[%emt 0:00:10]} 6. a3 {[%emt 0:00:54]} a6 {[%emt 0:00:10]} 7. dxc5 {[%emt 0:06:14]} Bxc5 {[%emt 0:00:12]} 8. b4 {[%emt 0:00:09]} Ba7 {[%emt 0:02:51]} 9. Bb2 {[%emt 0:01:15]} O-O {[%emt 0:03:16]} 10. Be2 {[%emt 0:01:32]} d4 {[%emt 0:10:19]} 11. exd4 {[%emt 0:00:16]} Nxd4 {[%emt 0:00:16]} 12. O-O {[%emt 0:03:04]} e5 {[%emt 0:13:47]} 13. Nxe5 {[%emt 0:14:47]} (13. c5 $14 {stays ahead.}) 13... Re8 $17 {[%emt 0:00:25]} 14. Nd3 {[%emt 0:13:51]} (14. Nf3 $142 Nxe2+ 15. Nxe2) 14... Bf5 $1 $17 {[%emt 0:02:27]} 15. Nf4 {[%emt 0:01:27]} Qd6 {[%emt 0:36:26]} 16. Nfd5 {[%emt 0:04:48]} Nxd5 {[%emt 0:02:14]} 17. cxd5 {[%emt 0:00:13]} Qg6 {[%emt 0:03:58]} ({Black should try} 17... Nxe2+ $1 $17 18. Nxe2 Bg4) 18. Bh5 $15 {[%emt 0:02:07]} Qg5 {[%emt 0:10:11]} (18... Qh6 {simplifies} 19. Rc1 Rad8 20. Bg4 Bxg4 21. Qxg4 f5) 19. Rc1 $2 {[%emt 0:20:48][%mdl 8192]} (19. Bc1 $15 Qf6 20. Bb2) 19... Rad8 $2 {[%emt 0:03:51]} (19... Bh3 $19 {[%csl Gh3][%cal Rg5g2]} 20. Bf3 Qf4 (20... Re2 21. Qxe2 Nxe2+ 22. Nxe2 $19)) 20. Ne2 $15 {[%emt 0:01:56]} Bc2 {[%emt 0:04:24]} (20... Qxh5 $17 21. Bxd4 Rxd5) 21. Rxc2 $14 {[%emt 0:00:04]} Nxc2 {[%emt 0:00:05]} 22. Bf3 {[%emt 0:02:09]} Rc8 {[%emt 0:00:57]} (22... Qg6 $14) 23. d6 $18 {[%emt 0:03:00]} Red8 {[%emt 0:00:23]} 24. Bxb7 {[%emt 0:03:42]} Rc4 {[%emt 0:00:37]} 25. Qd3 {[%emt 0:01:41]} (25. Bxa6 Rc6 $14) (25. Nc3 $18 {has better winning chances.} Nxa3 26. Nd5 (26. Bxa6 Qg6 $16)) 25... Ne3 $16 {[%emt 0:02:26]} 26. Bc1 {[%emt 0:14:35]} (26. fxe3 $16 Qxe3+ 27. Qxe3 Bxe3+ 28. Kh1) 26... Qf5 $11 {[%emt 0:00:13]} 27. Qxf5 {[%emt 0:01:49]} (27. Bxe3 $2 Qxd3 28. Bxa7 Qxe2 $19) 27... Nxf5 {[%emt 0:00:03]} 28. Bxa6 {[%emt 0:00:11]} Rc6 {[%emt 0:00:30]} 29. Bb7 {[%emt 0:01:04]} (29. Bb5 $11 Rcxd6 30. g3) 29... Rcxd6 {[%emt 0:00:19]} (29... Rc2 $15 30. Bf3 Nh4 (30... Rxd6 31. Re1 $17) (30... Nxd6 31. Rd1 $15)) 30. Bf4 {[%emt 0:00:34]} Rd1 {[%emt 0:00:09]} 31. Ng3 {[%emt 0:00:24]} Rxf1+ {[%emt 0:01:06]} 32. Kxf1 {[%emt 0:00:16]} Nd4 {[%emt 0:01:15]} 33. a4 {[%emt 0:00:19]} ({White should try} 33. Bc1 $15) 33... Nc2 {[%emt 0:00:36]} (33... Ne6 $19 {and Black stays clearly on top.} 34. Be5 Bd4 35. Bxd4 Rxd4) 34. b5 {[%emt 0:00:05]} Bb6 {[%emt 0:00:39]} (34... Rd4 $17 35. Bc7 Rd7 (35... Rxa4 36. b6 $11)) 35. Ne4 {[%emt 0:00:31]} (35. Nf5 $11 {keeps the balance.}) 35... Rd4 $17 {[%emt 0:00:30]} 36. Be5 {[%emt 0:01:26]} Rxa4 {[%emt 0:00:10]} 37. Nd6 {[%emt 0:00:30]} (37. Bc6 $17 {was the only chance.}) 37... Bc7 {[%emt 0:01:24]} (37... Bd4 $19 38. Bg3 Bc5) 38. Bc6 {[%emt 0:00:25] [#]} (38. Nxf7 $17 Bxe5 39. Nxe5) 38... Rb4 {[%emt 0:00:24]} (38... Bxd6 $1 $19 39. Bxd6 Ra1+ 40. Ke2 Nd4+ 41. Kd2 Nxc6 (41... Rb1 $2 42. Bc5 $19) 42. bxc6 Ra6) 39. Ke2 {[%emt 0:00:29] [#]} (39. Nxf7 $17 Rb1+ 40. Ke2) 39... Nd4+ {[%emt 0:00:29]} (39... f6 $1 $19 {[%cal Rf6e5]} 40. Bc3 Bxd6) 40. Bxd4 $17 {[%emt 0:00:05]} Rxd4 {[%emt 0:00:02]} 41. Nf5 {[%emt 0:00:27]} Rb4 {[%emt 0:00:48]} 42. Ne7+ {[%emt 0:00:10]} Kf8 {[%emt 0:00:03]} 43. Nd5 {[%emt 0:00:03]} Rb2+ {[%emt 0:00:04]} 44. Kf3 {[%emt 0:00:32]} (44. Kf1 $17 Bd6 (44... Bxh2 45. g3 $14) 45. Nb6) 44... Ba5 {[%emt 0:00:08]} 45. Nf4 {[%emt 0:01:27]} Bb6 {[%emt 0:00:15]} 46. Ke4 {[%emt 0:00:57]} (46. Nd3 $17 Rd2 47. Be4) 46... Rxf2 $19 {[%emt 0:00:34]} 47. h4 {[%emt 0:00:08]} g6 {[%emt 0:01:15]} 48. Nd5 {[%emt 0:00:48]} Bc5 {[%emt 0:00:23]} 49. b6 {[%emt 0:00:21]} (49. g4 {might work better.}) 49... Rxg2 $19 {[%emt 0:00:58]} 50. b7 {[%emt 0:00:42]} Bd6 {[%emt 0:00:10]} 51. Nf6 {[%emt 0:00:26]} Ke7 {[%emt 0:01:11]} 52. Nxh7 {[%emt 0:00:11]} Rg4+ {[%emt 0:00:07]} 53. Kd5 {[%emt 0:00:17]} Bb8 {[%emt 0:00:55]} 54. Ng5 {[%emt 0:00:23]} Rxh4 {[%emt 0:00:10]} 55. Ne4 {[%emt 0:00:03]} Rh2 {[%emt 0:00:28]} 56. Nc5 {[%emt 0:00:08]} (56. Kc4 $142) 56... Rh5+ $19 {[%emt 0:00:43]} 57. Kc4 {[%emt 0:00:06]} Kd6 {[%emt 0:00:08]} 0-1

[Event "29th Bosnjaci Open 2025"]
[Site "Bosnjaci"]
[Date "2025.01.05"]
[Round "4.7"]
[White "Ekmescic, Tarik"]
[Black "Zadravec, Matija"]
[Result "0-1"]
[ECO "B30"]
[WhiteElo "1967"]
[BlackElo "2283"]
[Annotator "TA"]
[PlyCount "54"]
[EventDate "2025.01.04"]
[EventType "swiss"]
[EventCountry "CRO"]
[SourceTitle "playchess.com"]
[Source "ChessBase"]
[SourceQuality "1"]
[TimeControl "5400+30"]

{[%evp 9,54,11,8,15,3,-8,20,6,12,4,18,20,15,-19,-13,-14,-9,-13,-18,-44,-39,-85,-97,-136,-79,-76,-42,-37,-29,-71,-35,-89,-38,-49,-25,-42,-36,-57,-52,-210,-95,-95,-72,-740,-697,-925,-925]} 1. e4 {[%emt 0:00:18]} c5 {[%emt 0:00:18]} 2. Nc3 {[%emt 0:00:06]} Nc6 {[%emt 0:00:36]} 3. Bb5 {[%emt 0:00:08]} Nd4 {[%emt 0:01:04]} 4. Nf3 {[%emt 0:00:06]} a6 {[%emt 0:01:19]} 5. Bc4 {[%emt 0:08:42]} e6 {[%emt 0:04:38]} 6. Nxd4 {[%emt 0:02:51]} cxd4 {[%emt 0:00:12]} 7. Ne2 {[%emt 0:00:07]} b5 {[%emt 0:03:22]} 8. Bb3 {[%emt 0:02:54] The position is equal.} (8. Bd3 $5) 8... Bc5 {[%emt 0:02:04]} 9. d3 {[%emt 0:01:42]} Bb7 {[%emt 0:01:28]} 10. O-O {[%emt 0:07:00]} Ne7 {[%emt 0:07:51]} 11. f4 {[%emt 0:13:10]} f5 {[%emt 0:04:45]} 12. Ng3 {[%emt 0:02:52] aiming for exf5.} O-O {[%emt 0:00:38]} 13. Qh5 {[%emt 0:17:39]} Kh8 {[%emt 0:06:01]} 14. Qg5 {[%emt 0:07:35]} Qe8 {[%emt 0:09:37]} 15. exf5 {[%emt 0:07:11]} (15. a4 $15 {deserves consideration.}) 15... Nxf5 $17 {[%emt 0:01:44]} 16. Ne4 {[%emt 0:02:53] [#] Inhibits Rf6.} Be7 {[%emt 0:05:09]} (16... Bb6 $142 $1 17. Kh1 Bc6) 17. Qg4 {[%emt 0:00:44]} Nh6 {[%emt 0:02:38]} 18. Qe2 {[%emt 0:01:09]} Qg6 $36 {[%emt 0:02:06][%mdl 2048] Black is more active.} 19. Bd2 {[%emt 0:06:28]} Nf5 {[%emt 0:01:33]} 20. Rae1 {[%emt 0:02:45]} (20. a4 $15) 20... Rac8 {[%emt 0:04:34] Black is more active.} (20... Bc6 $17 21. Ra1 b4) 21. a4 $15 {[%emt 0:04:08]} Rf7 {[%emt 0:05:24]} 22. axb5 {[%emt 0:00:37]} axb5 {[%emt 0:00:01]} 23. c3 {[%emt 0:02:26]} Rff8 {[%emt 0:06:58]} 24. Ra1 $2 {[%emt 0:02:47] [#]} (24. Qf3 $15) 24... Bd8 {[%emt 0:02:57]} (24... dxc3 $1 $19 {has better winning chances.} 25. bxc3 Bxe4 26. dxe4 Bc5+ 27. Rf2 (27. Kh1 $2 {gets mated.} Ng3+ 28. hxg3 Qh6+) 27... Bxf2+ 28. Kxf2 Nd6) 25. Kh1 {[%emt 0:02:04]} Bb6 {[%emt 0:02:38] Prevents Ra7. Threatens to win with ...dxc3.} 26. Rfc1 {[%emt 0:02:48][%mdl 8192]} (26. Qf3 $17) 26... dxc3 {[%emt 0:01:59]} 27. bxc3 {[%emt 0:01:20]} Bxe4 {[%emt 0:00:20] Weighted Error Value: White=0.68/Black=0.23 (precise) .  Loses game:     	White=1     	---        Mistake:       	White=3     	Black=3      Inaccurate:     	White=5     	Black=3      OK:         	White=4     	Black=5      Best:        	White=1     	Black=1} 0-1

[Event "29th Bosnjaci Open 2025"]
[Site "Bosnjaci"]
[Date "2025.01.05"]
[Round "4.8"]
[White "Kukic, Lora"]
[Black "Vucenovic, Damian"]
[Result "0-1"]
[ECO "D02"]
[WhiteElo "1961"]
[BlackElo "2272"]
[Annotator "TA"]
[PlyCount "48"]
[EventDate "2025.01.04"]
[EventType "swiss"]
[EventCountry "CRO"]
[SourceTitle "playchess.com"]
[Source "ChessBase"]
[SourceQuality "1"]
[TimeControl "5400+30"]

{[%evp 9,48,10,7,0,11,9,13,17,14,9,8,4,6,-20,-18,-50,-36,-30,-12,-72,-76,-72,-78,-190,-42,-79,-83,-73,-75,-89,-93,-331,-345,-235,-114,-347,-351,-331,-293,-304,-296]} 1. d4 {[%emt 0:00:02]} d5 {[%emt 0:00:19]} 2. Nf3 {[%emt 0:00:06]} Nf6 {[%emt 0:00:19]} 3. Bf4 {[%emt 0:00:21]} e6 {[%emt 0:00:25]} 4. e3 {[%emt 0:00:23]} Bd6 {[%emt 0:00:24]} 5. Nbd2 {[%emt 0:01:12]} b6 {[%emt 0:02:58]} 6. Ne5 {[%emt 0:02:50]} Bb7 {[%emt 0:01:29]} 7. c3 {[%emt 0:04:03]} Nbd7 {[%emt 0:12:01]} 8. Bb5 {[%emt 0:11:59]} O-O {[%emt 0:01:56]} 9. Nxd7 {[%emt 0:08:32]} Nxd7 {[%emt 0:00:26]} 10. Bxd6 {[%emt 0:01:09]} cxd6 {[%emt 0:00:18]} 11. Bxd7 {[%emt 0:12:45]} Qxd7 {[%emt 0:00:13]} 12. Nf3 {[%emt 0:01:19]} Ba6 {[%emt 0:03:43]} 13. h4 {[%emt 0:00:57]} f5 {[%emt 0:01:24]} 14. Ng5 {[%emt 0:03:23]} (14. Qc2 $11 {keeps the balance.}) 14... h6 $17 {[%emt 0:09:36]} 15. Nh3 {[%emt 0:01:13]} e5 {[%emt 0:00:55] Against Nf4. Black is more active.} 16. Qf3 {[%emt 0:02:17] [#]} (16. f3 $17) 16... Bb7 {[%emt 0:11:03]} (16... Qc6 $1 $19 {And now ...Rae8 would win.} 17. O-O-O Bc4) 17. O-O-O {[%emt 0:04:55]} b5 {[%emt 0:02:09]} 18. Kb1 {[%emt 0:06:35]} a5 {[%emt 0:01:52]} 19. Rhg1 {[%emt 0:02:15]} b4 {[%emt 0:02:05]} 20. cxb4 $2 {[%emt 0:03:09]} (20. Rc1 $17) 20... axb4 $19 {[%emt 0:00:19]} 21. b3 {[%emt 0:00:18]} Ra5 {[%emt 0:04:24]} (21... Qb5 $19 {[%cal Oa8a2] and Black stays clearly on top. ( -> ...Rxa2!)} 22. Rd2 f4) 22. g4 $2 {[%emt 0:01:10]} (22. Rd2 $17 {might work better.}) 22... fxg4 {[%emt 0:00:54]} 23. Qxg4 {[%emt 0:00:22]} Qxg4 {[%emt 0:00:24]} 24. Rxg4 {[%emt 0:00:03]} Bc8 {[%emt 0:00:18]} 0-1

[Event "29th Bosnjaci Open 2025"]
[Site "Bosnjaci"]
[Date "2025.01.05"]
[Round "4.9"]
[White "Jakovic, Roko"]
[Black "Bobanac, Miro"]
[Result "1/2-1/2"]
[ECO "A52"]
[WhiteElo "2273"]
[BlackElo "2157"]
[Annotator "TA"]
[PlyCount "63"]
[EventDate "2025.01.04"]
[EventType "swiss"]
[EventCountry "CRO"]
[SourceTitle "playchess.com"]
[Source "ChessBase"]
[SourceQuality "1"]
[TimeControl "5400+30"]

{[%evp 22,63,45,43,52,39,39,33,27,0,32,7,0,0,0,1,0,0,12,18,21,4,19,0,0,0,100,103,206,10,8,25,13,0,0,-9,0,-24,0,0,0,-24,0,0]} 1. d4 {[%emt 0:00:13][%cal Bd2d4,Bd4e5][%mdl 32]} Nf6 {[%emt 0:00:33]} 2. c4 {[%emt 0:00:12]} e5 {[%emt 0:02:10]} 3. dxe5 {[%emt 0:01:09]} Ng4 {[%emt 0:00:15]} 4. Bf4 {[%emt 0:00:14]} Nc6 {[%emt 0:00:30]} 5. Nf3 {[%emt 0:00:14]} Bb4+ {[%emt 0:00:58]} 6. Nbd2 {[%emt 0:00:26]} Qe7 {[%emt 0:01:06]} 7. e3 {[%emt 0:00:29]} Ngxe5 {[%emt 0:02:22]} 8. Nxe5 {[%emt 0:00:42]} Nxe5 {[%emt 0:00:12]} 9. Be2 {[%emt 0:00:56]} O-O {[%emt 0:01:57]} 10. O-O {[%emt 0:00:18]} Bxd2 {[%emt 0:01:08]} 11. Qxd2 {[%emt 0:00:24]} d6 {[%emt 0:00:02]} 12. b4 {[%emt 0:08:20]} a5 {[%emt 0:14:01]} 13. a3 {[%emt 0:15:18]} Bf5 {[%emt 0:16:41]} 14. Qc3 {[%emt 0:03:08]} Qf6 {[%emt 0:01:49][%cal Oe5f3] Hoping for ...Nf3+!.} 15. Kh1 {[%emt 0:10:40]} (15. bxa5 $2 {is the wrong capture.} Nf3+ 16. Bxf3 Qxc3 $19) 15... Rfe8 {[%emt 0:04:37][%cal Oe5d3]} (15... axb4 $5 16. axb4 Nd3 17. Qxf6 gxf6 $11) 16. Rfc1 {[%emt 0:04:24]} g5 {[%emt 0:17:31]} 17. Bg3 {[%emt 0:06:38]} Nd7 {[%emt 0:08:07][%cal Be5d7,Bd7f6,Bf6e4][%mdl 32]} 18. Qxf6 {[%emt 0:07:42]} Nxf6 {[%emt 0:00:15]} 19. c5 {[%emt 0:00:30]} Ne4 {[%emt 0:06:03]} 20. cxd6 {[%emt 0:01:59]} cxd6 {[%emt 0:02:21]} 21. b5 {[%emt 0:01:48]} Rac8 {[%emt 0:00:59] Prevents Rc7.} 22. b6 {[%emt 0:11:25]} Nxg3+ {[%emt 0:02:10]} 23. hxg3 {[%emt 0:00:12]} Rxc1+ {[%emt 0:00:12]} (23... Bc2 $11) 24. Rxc1 $11 {[%emt 0:00:13][%mdl 4096] Endgame KRB-KRB} Rc8 {[%emt 0:00:09]} (24... Kf8 $16) 25. Rd1 $2 {[%emt 0:04:53]} ({White must play} 25. Rxc8+ $18 Bxc8 26. Bf3) 25... Rc6 {[%emt 0:04:07]} 26. Rd5 {[%emt 0:00:22][%csl LRa5,LRf5]} Bg6 $1 {[%emt 0:00:12]} 27. Rb5 {[%emt 0:01:09][%cal Oe2f3]} (27. Rxa5 Rxb6 28. Bf3 (28. Rxg5 Rb2 $11) 28... h6 $14) 27... Rc5 {[%emt 0:02:13]} 28. Rb2 {[%emt 0:05:32]} Be4 {[%emt 0:01:31]} 29. Rd2 {[%emt 0:01:18]} Rd5 {[%emt 0:00:31]} 30. Rb2 {[%emt 0:00:40] and f3 should not be overlooked} Rc5 {[%emt 0:01:12]} 31. Rb5 {[%emt 0:00:04]} Bg6 {[%emt 0:00:03]} 32. Rxc5 {[%emt 0:00:10]} 1/2-1/2